[Event "Goteborg Open 2024"]
[Site "Goteborgs Schackcentrum, Vegatan 20, Gothenburg, Sweden"]
[Date "2024.08.02"]
[Round "1.13"]
[White "Madevan Vaishnavi, Yaashvan"]
[Black "Johansson, Stefan 1962"]
[Result "0-1"]
[TimeControl "15 minutes + 5 seconds per move from move one (Round 1 - 4) / 90 minutes + 30 seconds per move from move one (Round 5 - 8)"]
[WhiteElo "1684"]
[BlackElo "1933"]

1. e4 {[%clk 00:15:08]} {[%emt 00:00:01]} e6 {[%clk 00:15:04]} {[%emt
00:00:07]} 2. d4 {[%clk 00:15:11]} {[%emt 00:00:03]} d5 {[%clk 00:15:07]}
{[%emt 00:00:01]} 3. Nd2 {[%clk 00:15:11]} {[%emt 00:00:05]} Nf6 {[%clk
00:15:07]} {[%emt 00:00:05]} 4. e5 {[%clk 00:15:14]} {[%emt 00:00:03]} Nfd7
{[%clk 00:15:10]} {[%emt 00:00:01]} 5. Ngf3 {[%clk 00:15:04]} {[%emt 00:00:15]}
c5 {[%clk 00:15:10]} {[%emt 00:00:05]} 6. c3 {[%clk 00:15:06]} {[%emt
00:00:04]} Nc6 {[%clk 00:15:09]} {[%emt 00:00:05]} 7. Nb3 {[%clk 00:14:37]}
{[%emt 00:00:34]} cxd4 {[%clk 00:14:46]} {[%emt 00:00:27]} 8. cxd4 {[%clk
00:14:35]} {[%emt 00:00:08]} f6 {[%clk 00:14:43]} {[%emt 00:00:08]} 9. exf6
{[%clk 00:13:35]} {[%emt 00:01:05]} Nxf6 {[%clk 00:14:46]} {[%emt 00:00:02]} 10.
Bb5 {[%clk 00:12:57]} {[%emt 00:00:43]} Bd7 {[%clk 00:14:07]} {[%emt 00:00:44]}
11. O-O {[%clk 00:12:17]} {[%emt 00:00:45]} Bd6 {[%clk 00:14:05]} {[%emt
00:00:06]} 12. Bxc6 {[%clk 00:11:43]} {[%emt 00:00:40]} bxc6 {[%clk 00:14:03]}
{[%emt 00:00:07]} 13. Re1 {[%clk 00:11:08]} {[%emt 00:00:40]} O-O {[%clk
00:13:55]} {[%emt 00:00:13]} 14. Bg5 {[%clk 00:11:00]} {[%emt 00:00:13]} Qc7
{[%clk 00:13:36]} {[%emt 00:00:24]} 15. Nbd2 {[%clk 00:08:23]} {[%emt
00:02:41]} Rae8 {[%clk 00:13:23]} {[%emt 00:00:18]} 16. Ne5 {[%clk 00:08:07]}
{[%emt 00:00:22]} Bc8 {[%clk 00:08:42]} {[%emt 00:04:46]} 17. Rc1 {[%clk
00:07:29]} {[%emt 00:00:42]} Bxe5 {[%clk 00:07:46]} {[%emt 00:01:01]} 18. dxe5
{[%clk 00:06:51]} {[%emt 00:00:43]} Nd7 {[%clk 00:07:44]} {[%emt 00:00:06]} 19.
Nf3 {[%clk 00:06:50]} {[%emt 00:00:07]} Rf5 {[%clk 00:06:59]} {[%emt 00:00:50]}
20. Qe2 {[%clk 00:04:50]} {[%emt 00:02:06]} c5 {[%clk 00:06:42]} {[%emt
00:00:22]} 21. Bh4 {[%clk 00:04:27]} {[%emt 00:00:28]} Bb7 {[%clk 00:06:12]}
{[%emt 00:00:35]} 22. b3 {[%clk 00:03:33]} {[%emt 00:00:59]} d4 {[%clk
00:05:48]} {[%emt 00:00:28]} 23. Nxd4 {[%clk 00:02:40]} {[%emt 00:00:58]} Rxe5
{[%clk 00:05:47]} {[%emt 00:00:07]} 24. Qd2 {[%clk 00:02:38]} {[%emt 00:00:08]}
Rxe1+ {[%clk 00:05:34]} {[%emt 00:00:17]} 25. Qxe1 {[%clk 00:02:41]} {[%emt
00:00:02]} Qd6 {[%clk 00:05:06]} {[%emt 00:00:32]} 26. Nb5 {[%clk 00:02:23]}
{[%emt 00:00:24]} Qc6 {[%clk 00:05:06]} {[%emt 00:00:05]} 27. Qf1 {[%clk
00:02:06]} {[%emt 00:00:22]} Ne5 {[%clk 00:04:13]} {[%emt 00:00:57]} 28. Bg3
{[%clk 00:01:15]} {[%emt 00:00:56]} Nf3+ {[%clk 00:03:39]} {[%emt 00:00:40]} 29.
Kh1 {[%clk 00:01:17]} {[%emt 00:00:02]} Nd2 {[%clk 00:03:36]} {[%emt 00:00:08]}
30. Nxa7 {[%clk 00:00:59]} {[%emt 00:00:24]} Qd5 {[%clk 00:03:04]} {[%emt
00:00:38]} 31. Qg1 {[%clk 00:00:43]} {[%emt 00:00:20]} Ne4 {[%clk 00:02:51]}
{[%emt 00:00:18]} 32. f3 {[%clk 00:00:11]} {[%emt 00:00:37]} Ng5 {[%clk
00:02:49]} {[%emt 00:00:06]} 33. Rxc5 {[%clk 00:00:10]} {[%emt 00:00:07]} Qf5
{[%clk 00:02:34]} {[%emt 00:00:20]} 34. Rxf5 {[%clk 00:00:11]} {[%emt
00:00:05]} exf5 {[%clk 00:02:38]} {[%emt 00:00:01]} 35. Nb5 {[%emt 00:00:09]}
Nxf3 {[%clk 00:02:28]} {[%emt 00:00:07]} 36. gxf3 {[%clk 00:00:16]} {[%emt
00:00:04]} Bxf3+ {[%emt 00:00:01]} 37. Qg2 Bxg2+ {[%clk 00:02:34]} {[%emt
00:00:02]} 38. Kxg2 {[%clk 00:00:24]} {[%emt 00:00:02]} Re2+ {[%clk 00:02:38]}
{[%emt 00:00:01]} 39. Bf2 {[%clk 00:00:28]} {[%emt 00:00:02]} Rxa2 {[%clk
00:02:41]} {[%emt 00:00:01]} 40. Nd4 {[%clk 00:00:32]} g6 {[%clk 00:02:45]}
{[%emt 00:00:02]} 41. b4 {[%clk 00:00:33]} {[%emt 00:00:04]} Kf7 {[%clk
00:02:43]} {[%emt 00:00:06]} 42. b5 {[%clk 00:00:37]} {[%emt 00:00:01]} Ke7
{[%clk 00:02:46]} {[%emt 00:00:02]} 43. b6 {[%clk 00:00:41]} {[%emt 00:00:03]}
Kd7 {[%clk 00:02:48]} {[%emt 00:00:03]} 44. Nf3 {[%clk 00:00:32]} {[%emt
00:00:13]} Rb2 {[%clk 00:02:14]} {[%emt 00:00:40]} 45. Ng5 {[%clk 00:00:28]}
{[%emt 00:00:10]} h6 {[%clk 00:02:16]} {[%emt 00:00:01]} 46. Nf7 {[%clk
00:00:31]} {[%emt 00:00:02]} h5 {[%clk 00:02:13]} {[%emt 00:00:07]} 47. Ne5+
{[%clk 00:00:34]} {[%emt 00:00:03]} Ke6 {[%clk 00:02:16]} {[%emt 00:00:01]} 48.
Nxg6 {[%clk 00:00:36]} {[%emt 00:00:04]} Kf6 {[%clk 00:02:15]} {[%emt
00:00:06]} 49. Nf4 {[%clk 00:00:29]} {[%emt 00:00:11]} Kg5 {[%clk 00:02:18]}
{[%emt 00:00:02]} 50. Nd5 {[%clk 00:00:27]} {[%emt 00:00:08]} h4 {[%clk
00:02:14]} {[%emt 00:00:08]} 51. h3 {[%clk 00:00:27]} {[%emt 00:00:05]} f4
{[%clk 00:02:18]} {[%emt 00:00:02]} 52. Nc3 {[%clk 00:00:09]} {[%emt 00:00:22]}
Kf5 {[%clk 00:02:20]} {[%emt 00:00:04]} 53. Na4 {[%clk 00:00:12]} {[%emt
00:00:02]} Rb5 {[%clk 00:02:08]} {[%emt 00:00:17]} 54. Nc3 {[%clk 00:00:13]}
{[%emt 00:00:04]} Rb3 {[%clk 00:02:11]} {[%emt 00:00:02]} 55. Ne2 {[%clk
00:00:12]} {[%emt 00:00:07]} f3+ {[%clk 00:02:13]} {[%emt 00:00:02]} 56. Kf1
{[%clk 00:00:11]} {[%emt 00:00:06]} Rb1+ {[%clk 00:02:12]} {[%emt 00:00:06]} 57.
Be1 {[%clk 00:00:12]} {[%emt 00:00:04]} fxe2+ {[%clk 00:02:06]} {[%emt
00:00:11]} 58. Kxe2 {[%clk 00:00:16]} {[%emt 00:00:01]} Rxb6 {[%clk 00:01:51]}
{[%emt 00:00:21]} 59. Bxh4 {[%clk 00:00:14]} {[%emt 00:00:06]} Rh6 {[%clk
00:01:52]} {[%emt 00:00:03]} 60. Bf2 {[%clk 00:00:16]} {[%emt 00:00:04]} Rxh3
{[%clk 00:01:56]} {[%emt 00:00:01]} 61. Be3 {[%clk 00:00:09]} {[%emt 00:00:12]}
Ke4 {[%clk 00:01:59]} {[%emt 00:00:02]} 62. Bf2 {[%clk 00:00:08]} {[%emt
00:00:06]} Rh2 {[%clk 00:02:00]} {[%emt 00:00:04]} 63. Kf1 {[%clk 00:00:11]}
{[%emt 00:00:01]} Kf3 {[%clk 00:02:04]} {[%emt 00:00:01]} 0-1

[ePGN "0.1;DGT LiveChess/2.2.6"]

[Event "Goteborg Open 2024"]
[Site "Goteborgs Schackcentrum, Vegatan 20, Gothenburg, Sweden"]
[Date "2024.08.02"]
[Round "1.14"]
[White "Fransson, Lennart"]
[Black "Olsson, Oscar"]
[Result "1-0"]
[TimeControl "15 minutes + 5 seconds per move from move one (Round 1 - 4) / 90 minutes + 30 seconds per move from move one (Round 5 - 8)"]
[WhiteElo "1926"]
[BlackElo "1679"]

1. e4 {[%clk 00:15:04]} {[%emt 00:00:05]} d6 {[%clk 00:15:03]} {[%emt
00:00:08]} 2. d4 {[%clk 00:15:06]} {[%emt 00:00:03]} g6 {[%clk 00:15:06]}
{[%emt 00:00:02]} 3. Nc3 {[%clk 00:15:01]} {[%emt 00:00:10]} Bg7 {[%clk
00:15:02]} {[%emt 00:00:08]} 4. h4 {[%clk 00:14:53]} {[%emt 00:00:13]} h5
{[%clk 00:14:52]} {[%emt 00:00:15]} 5. Be3 {[%clk 00:14:26]} {[%emt 00:00:31]}
c6 {[%clk 00:13:10]} {[%emt 00:01:49]} 6. Qd2 {[%clk 00:14:08]} {[%emt
00:00:23]} e5 {[%clk 00:12:04]} {[%emt 00:01:11]} 7. dxe5 {[%clk 00:13:35]}
{[%emt 00:00:37]} Bxe5 {[%clk 00:11:01]} {[%emt 00:01:08]} 8. Nf3 {[%clk
00:13:15]} {[%emt 00:00:25]} Nd7 {[%clk 00:08:34]} {[%emt 00:02:32]} 9. O-O-O
{[%clk 00:12:48]} {[%emt 00:00:31]} Qc7 {[%clk 00:06:58]} {[%emt 00:01:41]} 10.
Bc4 {[%clk 00:11:34]} {[%emt 00:01:20]} Ngf6 {[%clk 00:05:28]} {[%emt
00:01:36]} 11. Ng5 {[%clk 00:10:34]} {[%emt 00:01:04]} O-O {[%clk 00:05:00]}
{[%emt 00:00:33]} 12. f4 {[%clk 00:10:07]} {[%emt 00:00:31]} Bxc3 {[%clk
00:04:22]} {[%emt 00:00:45]} 13. Qxc3 {[%clk 00:10:10]} {[%emt 00:00:02]} b5
{[%clk 00:03:21]} {[%emt 00:01:06]} 14. Bxb5 {[%clk 00:09:51]} {[%emt
00:00:24]} c5 {[%clk 00:02:50]} {[%emt 00:00:36]} 15. Be2 {[%clk 00:07:07]}
{[%emt 00:02:48]} Bb7 {[%clk 00:02:16]} {[%emt 00:00:40]} 16. Bf3 {[%clk
00:07:09]} {[%emt 00:00:02]} Rfe8 {[%clk 00:01:56]} {[%emt 00:00:24]} 17. Qd3
{[%clk 00:05:38]} {[%emt 00:01:36]} a5 {[%clk 00:01:11]} {[%emt 00:00:52]} 18.
Qxd6 {[%clk 00:05:17]} {[%emt 00:00:26]} Qxd6 {[%clk 00:01:01]} {[%emt
00:00:14]} 19. Rxd6 {[%clk 00:05:18]} {[%emt 00:00:04]} Rad8 {[%clk 00:00:40]}
{[%emt 00:00:25]} 20. Rhd1 {[%clk 00:05:17]} {[%emt 00:00:07]} Re7 {[%clk
00:00:30]} {[%emt 00:00:16]} 21. e5 {[%clk 00:05:07]} {[%emt 00:00:14]} Bxf3
{[%clk 00:00:25]} {[%emt 00:00:12]} 22. gxf3 {[%clk 00:05:03]} {[%emt
00:00:08]} Ne8 {[%clk 00:00:21]} {[%emt 00:00:09]} 23. R6d2 {[%clk 00:04:55]}
{[%emt 00:00:11]} Nc7 {[%clk 00:00:14]} {[%emt 00:00:14]} 24. Ne4 {[%clk
00:04:46]} {[%emt 00:00:13]} f5 {[%emt 00:00:20]} 25. Nf6+ {[%clk 00:04:39]}
{[%emt 00:00:02]} Nxf6 {[%clk 00:00:09]} {[%emt 00:00:06]} 26. Rxd8+ {[%clk
00:04:39]} {[%emt 00:00:04]} Nfe8 {[%clk 00:00:12]} {[%emt 00:00:02]} 27. Bxc5
{[%clk 00:04:35]} {[%emt 00:00:09]} Rf7 {[%clk 00:00:11]} {[%emt 00:00:06]} 28.
e6 {[%clk 00:03:58]} {[%emt 00:00:41]} Rh7 {[%clk 00:00:06]} {[%emt 00:00:11]}
29. R1d7 {[%clk 00:03:53]} {[%emt 00:00:10]} Rxd7 {[%clk 00:00:07]} {[%emt
00:00:04]} 30. exd7 {[%clk 00:03:56]} {[%emt 00:00:02]} Kf7 {[%clk 00:00:09]}
{[%emt 00:00:04]} 31. Rc8 {[%clk 00:03:32]} {[%emt 00:00:28]} 1-0

[ePGN "0.1;DGT LiveChess/2.2.6"]

[Event "Goteborg Open 2024"]
[Site "Goteborgs Schackcentrum, Vegatan 20, Gothenburg, Sweden"]
[Date "2024.08.02"]
[Round "1.15"]
[White "Ulmer, Maya Vissing"]
[Black "Utriainen, Tapani"]
[Result "0-1"]
[TimeControl "15 minutes + 5 seconds per move from move one (Round 1 - 4) / 90 minutes + 30 seconds per move from move one (Round 5 - 8)"]
[WhiteElo "1676"]
[BlackElo "1914"]

1. d4 {[%clk 00:15:08]} d5 {[%clk 00:15:09]} {[%emt 00:00:02]} 2. c4 {[%clk
00:15:12]} {[%emt 00:00:01]} c6 {[%clk 00:15:12]} {[%emt 00:00:02]} 3. Nc3
{[%clk 00:15:15]} {[%emt 00:00:02]} Nf6 {[%clk 00:15:16]} {[%emt 00:00:01]} 4.
cxd5 {[%clk 00:15:12]} {[%emt 00:00:08]} cxd5 {[%clk 00:15:18]} {[%emt
00:00:03]} 5. Bf4 {[%clk 00:15:14]} {[%emt 00:00:03]} Nc6 {[%clk 00:15:10]}
{[%emt 00:00:14]} 6. e3 {[%clk 00:15:14]} {[%emt 00:00:04]} a6 {[%clk
00:15:11]} {[%emt 00:00:04]} 7. Bd3 {[%clk 00:15:08]} {[%emt 00:00:11]} Bg4
{[%clk 00:14:20]} {[%emt 00:00:56]} 8. Qb3 {[%clk 00:13:26]} {[%emt 00:01:47]}
b5 {[%clk 00:14:20]} {[%emt 00:00:05]} 9. Rc1 {[%clk 00:12:28]} {[%emt
00:01:03]} Rc8 {[%clk 00:13:46]} {[%emt 00:00:39]} 10. Nge2 {[%clk 00:11:19]}
{[%emt 00:01:14]} e6 {[%clk 00:13:45]} {[%emt 00:00:06]} 11. O-O {[%clk
00:10:00]} {[%emt 00:01:24]} Bd6 {[%clk 00:11:35]} {[%emt 00:02:15]} 12. Bxd6
{[%clk 00:08:55]} {[%emt 00:01:10]} Qxd6 {[%clk 00:11:38]} {[%emt 00:00:02]} 13.
Nf4 {[%clk 00:07:55]} {[%emt 00:01:04]} O-O {[%clk 00:11:25]} {[%emt 00:00:19]}
14. h3 {[%clk 00:07:37]} {[%emt 00:00:22]} Nxd4 {[%clk 00:08:23]} {[%emt
00:03:07]} 15. exd4 {[%clk 00:03:51]} {[%emt 00:03:52]} Qxf4 {[%clk 00:08:24]}
{[%emt 00:00:04]} 16. hxg4 {[%clk 00:03:25]} {[%emt 00:00:30]} Nxg4 {[%clk
00:08:25]} {[%emt 00:00:04]} 17. g3 {[%clk 00:02:59]} {[%emt 00:00:31]} Qh6
{[%clk 00:08:28]} {[%emt 00:00:03]} 18. Kg2 {[%clk 00:02:25]} {[%emt 00:00:39]}
Qh2+ {[%clk 00:06:59]} {[%emt 00:01:34]} 19. Kf3 {[%clk 00:02:27]} {[%emt
00:00:02]} f5 {[%clk 00:05:32]} {[%emt 00:01:33]} 20. Rh1 {[%clk 00:02:21]}
{[%emt 00:00:11]} Qxf2# {[%clk 00:05:34]} {[%emt 00:00:02]} 0-1

[ePGN "0.1;DGT LiveChess/2.2.6"]

[Event "Goteborg Open 2024"]
[Site "Goteborgs Schackcentrum, Vegatan 20, Gothenburg, Sweden"]
[Date "2024.08.02"]
[Round "1.16"]
[White "Borin, Jesper"]
[Black "Lifmark, Kaspar"]
[Result "1-0"]
[TimeControl "15 minutes + 5 seconds per move from move one (Round 1 - 4) / 90 minutes + 30 seconds per move from move one (Round 5 - 8)"]
[WhiteElo "1905"]
[BlackElo "1672"]

1. e4 {[%clk 00:15:06]} {[%emt 00:00:04]} d6 {[%clk 00:15:06]} {[%emt
00:00:05]} 2. d4 {[%clk 00:15:09]} {[%emt 00:00:01]} Nf6 {[%clk 00:15:09]}
{[%emt 00:00:03]} 3. Nc3 {[%clk 00:15:13]} {[%emt 00:00:01]} g6 {[%clk
00:15:12]} {[%emt 00:00:01]} 4. Be3 {[%clk 00:15:17]} {[%emt 00:00:02]} Bg7
{[%clk 00:15:15]} {[%emt 00:00:02]} 5. Qd2 {[%clk 00:15:21]} {[%emt 00:00:01]}
c6 {[%clk 00:15:18]} {[%emt 00:00:02]} 6. Bh6 {[%clk 00:15:24]} Bxh6 {[%clk
00:13:43]} {[%emt 00:01:40]} 7. Qxh6 {[%clk 00:15:28]} {[%emt 00:00:01]} Nbd7
{[%clk 00:12:25]} {[%emt 00:01:24]} 8. O-O-O {[%clk 00:12:13]} {[%emt
00:03:20]} e5 {[%clk 00:11:11]} {[%emt 00:01:18]} 9. Nf3 {[%clk 00:08:41]}
{[%emt 00:03:37]} Ng4 {[%clk 00:07:38]} {[%emt 00:03:38]} 10. Qd2 {[%clk
00:07:34]} {[%emt 00:01:12]} b5 {[%clk 00:06:52]} {[%emt 00:00:51]} 11. h3
{[%clk 00:07:26]} {[%emt 00:00:13]} Ngf6 {[%clk 00:05:46]} {[%emt 00:01:11]} 12.
dxe5 {[%clk 00:07:28]} {[%emt 00:00:03]} dxe5 {[%clk 00:04:24]} {[%emt
00:01:27]} 13. Nxe5 {[%clk 00:06:24]} {[%emt 00:01:09]} Bb7 {[%clk 00:03:16]}
{[%emt 00:01:13]} 14. Nxd7 {[%clk 00:05:51]} {[%emt 00:00:38]} Qxd7 {[%clk
00:02:48]} {[%emt 00:00:33]} 15. Qf4 {[%clk 00:04:39]} {[%emt 00:01:16]} Qe6
{[%clk 00:01:59]} {[%emt 00:00:55]} 16. Rd6 {[%clk 00:04:19]} {[%emt 00:00:24]}
Qe7 {[%clk 00:00:23]} {[%emt 00:01:41]} 17. Qxf6 {[%clk 00:04:17]} {[%emt
00:00:08]} 1-0

[ePGN "0.1;DGT LiveChess/2.2.6"]

[Event "Goteborg Open 2024"]
[Site "Goteborgs Schackcentrum, Vegatan 20, Gothenburg, Sweden"]
[Date "2024.08.02"]
[Round "1.17"]
[White "Hammar, Arvid"]
[Black "Degerfeldt, Sven"]
[Result "0-1"]
[TimeControl "15 minutes + 5 seconds per move from move one (Round 1 - 4) / 90 minutes + 30 seconds per move from move one (Round 5 - 8)"]
[WhiteElo "1653"]
[BlackElo "1902"]

1. e4 {[%clk 00:15:06]} {[%emt 00:00:03]} c5 {[%clk 00:15:09]} {[%emt
00:00:01]} 2. d4 {[%clk 00:15:05]} {[%emt 00:00:06]} cxd4 {[%clk 00:15:12]}
{[%emt 00:00:02]} 3. Qxd4 {[%clk 00:14:55]} {[%emt 00:00:15]} Nc6 {[%clk
00:15:15]} {[%emt 00:00:02]} 4. Qd1 {[%clk 00:14:57]} {[%emt 00:00:04]} d6
{[%clk 00:15:19]} {[%emt 00:00:01]} 5. Nc3 {[%clk 00:14:30]} {[%emt 00:00:32]}
Nf6 {[%clk 00:15:21]} {[%emt 00:00:02]} 6. Nf3 {[%clk 00:14:26]} {[%emt
00:00:09]} e6 {[%clk 00:15:24]} {[%emt 00:00:03]} 7. Bb5 {[%clk 00:14:11]}
{[%emt 00:00:19]} Bd7 {[%clk 00:15:20]} {[%emt 00:00:09]} 8. O-O {[%clk
00:13:48]} {[%emt 00:00:28]} a6 {[%clk 00:15:22]} {[%emt 00:00:03]} 9. Bxc6
{[%clk 00:13:37]} {[%emt 00:00:16]} Bxc6 {[%clk 00:15:26]} {[%emt 00:00:02]} 10.
Bg5 {[%clk 00:13:32]} {[%emt 00:00:10]} Be7 {[%clk 00:15:28]} {[%emt 00:00:03]}
11. Re1 {[%clk 00:12:57]} {[%emt 00:00:39]} Qc7 {[%clk 00:15:32]} {[%emt
00:00:02]} 12. e5 {[%clk 00:12:10]} {[%emt 00:00:52]} dxe5 {[%clk 00:15:00]}
{[%emt 00:00:36]} 13. Nxe5 {[%clk 00:11:49]} {[%emt 00:00:25]} O-O {[%clk
00:14:58]} {[%emt 00:00:08]} 14. a3 {[%clk 00:10:45]} {[%emt 00:01:10]} Rad8
{[%clk 00:15:00]} {[%emt 00:00:03]} 15. Nd3 {[%clk 00:10:04]} {[%emt 00:00:45]}
Rfe8 {[%clk 00:14:49]} {[%emt 00:00:16]} 16. Bf4 {[%clk 00:09:44]} {[%emt
00:00:25]} Bd6 {[%clk 00:12:59]} {[%emt 00:01:55]} 17. Bxd6 {[%clk 00:09:18]}
{[%emt 00:00:32]} Qxd6 {[%clk 00:12:38]} {[%emt 00:00:26]} 18. Ne5 {[%clk
00:08:45]} {[%emt 00:00:37]} Qc5 {[%clk 00:11:29]} {[%emt 00:01:14]} 19. Qe2
{[%clk 00:07:57]} {[%emt 00:00:54]} b5 {[%clk 00:10:47]} {[%emt 00:00:47]} 20.
Rad1 {[%clk 00:07:13]} {[%emt 00:00:49]} Bb7 {[%clk 00:10:44]} {[%emt
00:00:07]} 21. Qe3 {[%clk 00:06:30]} {[%emt 00:00:48]} Rxd1 {[%clk 00:09:41]}
{[%emt 00:01:10]} 22. Rxd1 {[%clk 00:06:22]} {[%emt 00:00:12]} Qxe3 {[%clk
00:09:43]} {[%emt 00:00:03]} 23. fxe3 {[%clk 00:06:25]} {[%emt 00:00:02]} Rc8
{[%clk 00:07:18]} {[%emt 00:02:29]} 24. g4 {[%clk 00:05:34]} {[%emt 00:00:55]}
h6 {[%clk 00:07:17]} {[%emt 00:00:07]} 25. h4 {[%clk 00:05:27]} {[%emt
00:00:12]} Nd5 {[%clk 00:05:44]} {[%emt 00:01:39]} 26. Nxd5 {[%clk 00:03:26]}
{[%emt 00:02:05]} Bxd5 {[%clk 00:05:47]} {[%emt 00:00:01]} 27. c3 {[%clk
00:03:06]} {[%emt 00:00:26]} f6 {[%clk 00:05:41]} {[%emt 00:00:10]} 28. Ng6
{[%clk 00:02:46]} {[%emt 00:00:25]} Kf7 {[%clk 00:05:44]} {[%emt 00:00:02]} 29.
h5 {[%clk 00:02:41]} {[%emt 00:00:11]} Rc4 {[%clk 00:05:42]} {[%emt 00:00:07]}
30. Nf4 {[%clk 00:02:28]} {[%emt 00:00:17]} Bc6 {[%clk 00:05:13]} {[%emt
00:00:34]} 31. Kf2 {[%clk 00:02:01]} {[%emt 00:00:32]} Ke7 {[%clk 00:03:57]}
{[%emt 00:01:21]} 32. Kg3 {[%clk 00:01:51]} {[%emt 00:00:15]} Be4 {[%clk
00:03:49]} {[%emt 00:00:13]} 33. Ne2 {[%clk 00:01:32]} {[%emt 00:00:24]} e5
{[%clk 00:03:27]} {[%emt 00:00:27]} 34. b3 {[%clk 00:01:24]} {[%emt 00:00:13]}
Rc7 {[%clk 00:03:22]} {[%emt 00:00:10]} 35. Rc1 {[%clk 00:01:17]} {[%emt
00:00:12]} Rd7 {[%clk 00:03:22]} {[%emt 00:00:06]} 36. c4 {[%clk 00:01:14]}
{[%emt 00:00:08]} Bd3 {[%clk 00:03:24]} {[%emt 00:00:02]} 37. Nc3 {[%clk
00:01:12]} {[%emt 00:00:08]} bxc4 {[%clk 00:03:27]} {[%emt 00:00:01]} 38. bxc4
{[%clk 00:01:14]} {[%emt 00:00:03]} Bxc4 {[%clk 00:03:28]} {[%emt 00:00:04]} 39.
Na2 {[%clk 00:01:11]} {[%emt 00:00:08]} Bxa2 {[%clk 00:03:30]} {[%emt
00:00:03]} 40. Rc6 {[%clk 00:01:15]} {[%emt 00:00:02]} a5 {[%clk 00:03:32]}
{[%emt 00:00:03]} 41. e4 {[%clk 00:01:18]} {[%emt 00:00:03]} a4 {[%clk
00:03:32]} {[%emt 00:00:04]} 42. Ra6 {[%clk 00:01:19]} {[%emt 00:00:04]} Bb3
{[%clk 00:03:35]} {[%emt 00:00:01]} 43. Kf3 {[%clk 00:01:20]} {[%emt 00:00:04]}
Bd1+ {[%clk 00:03:34]} {[%emt 00:00:06]} 44. Kg3 {[%clk 00:01:23]} {[%emt
00:00:03]} Rd3+ {[%clk 00:03:36]} {[%emt 00:00:03]} 45. Kf2 {[%clk 00:01:24]}
{[%emt 00:00:04]} Rxa3 {[%clk 00:03:28]} {[%emt 00:00:13]} 46. Ke1 {[%clk
00:01:27]} {[%emt 00:00:02]} Bxg4 {[%clk 00:03:24]} {[%emt 00:00:08]} 47. Ra7+
{[%clk 00:01:31]} {[%emt 00:00:03]} Bd7 {[%clk 00:03:27]} 48. Kd2 {[%clk
00:01:34]} {[%emt 00:00:02]} Rh3 {[%clk 00:03:27]} {[%emt 00:00:04]} 49. Kc2
{[%clk 00:01:34]} {[%emt 00:00:05]} a3 {[%clk 00:03:31]} {[%emt 00:00:02]} 50.
Kb1 {[%clk 00:01:35]} {[%emt 00:00:04]} Re3 {[%clk 00:03:32]} {[%emt 00:00:03]}
51. Ka2 {[%clk 00:01:37]} {[%emt 00:00:04]} Rxe4 {[%clk 00:03:32]} {[%emt
00:00:05]} 0-1

[ePGN "0.1;DGT LiveChess/2.2.6"]

[Event "Goteborg Open 2024"]
[Site "Goteborgs Schackcentrum, Vegatan 20, Gothenburg, Sweden"]
[Date "2024.08.02"]
[Round "1.18"]
[White "Ottgard, Andreas"]
[Black "Evertsson, David"]
[Result "1-0"]
[TimeControl "15 minutes + 5 seconds per move from move one (Round 1 - 4) / 90 minutes + 30 seconds per move from move one (Round 5 - 8)"]
[WhiteElo "1900"]
[BlackElo "1642"]

1. c4 {[%clk 00:15:08]} {[%emt 00:00:02]} e5 {[%clk 00:15:06]} {[%emt
00:00:04]} 2. g3 {[%clk 00:15:11]} {[%emt 00:00:02]} c6 {[%clk 00:14:59]}
{[%emt 00:00:12]} 3. d4 {[%clk 00:15:11]} {[%emt 00:00:05]} e4 {[%clk
00:14:30]} {[%emt 00:00:34]} 4. Nc3 {[%clk 00:15:06]} {[%emt 00:00:10]} d5
{[%clk 00:14:25]} {[%emt 00:00:10]} 5. Bg2 {[%clk 00:14:33]} {[%emt 00:00:37]}
f5 {[%clk 00:14:00]} {[%emt 00:00:31]} 6. Nh3 {[%clk 00:13:50]} {[%emt
00:00:47]} Nf6 {[%clk 00:13:01]} {[%emt 00:01:04]} 7. O-O {[%clk 00:13:17]}
{[%emt 00:00:39]} Bd6 {[%clk 00:10:20]} {[%emt 00:02:45]} 8. Bg5 {[%clk
00:11:45]} {[%emt 00:01:37]} Be6 {[%clk 00:09:59]} {[%emt 00:00:26]} 9. cxd5
{[%clk 00:10:30]} {[%emt 00:01:21]} cxd5 {[%clk 00:08:59]} {[%emt 00:01:04]} 10.
Qb3 {[%clk 00:08:23]} {[%emt 00:02:13]} Nc6 {[%clk 00:07:54]} {[%emt 00:01:10]}
11. Bxf6 {[%clk 00:07:22]} {[%emt 00:01:06]} Qxf6 {[%clk 00:07:26]} {[%emt
00:00:32]} 12. Qxb7 {[%clk 00:07:13]} {[%emt 00:00:15]} Rc8 {[%clk 00:06:20]}
{[%emt 00:01:10]} 13. Nxd5 {[%clk 00:06:25]} {[%emt 00:00:53]} Qxd4 {[%clk
00:05:01]} {[%emt 00:01:23]} 14. Rfd1 {[%clk 00:06:11]} {[%emt 00:00:20]} Qa4
{[%clk 00:04:04]} {[%emt 00:01:03]} 15. Qxg7 {[%clk 00:05:41]} {[%emt
00:00:35]} Be5 {[%clk 00:01:28]} {[%emt 00:02:41]} 16. Nf6+ {[%clk 00:05:32]}
{[%emt 00:00:14]} Bxf6 {[%clk 00:01:21]} {[%emt 00:00:11]} 17. Qxf6 {[%clk
00:05:30]} {[%emt 00:00:08]} Bd7 {[%clk 00:00:41]} {[%emt 00:00:44]} 18. Qxh8+
{[%clk 00:05:22]} {[%emt 00:00:14]} Ke7 {[%clk 00:00:23]} {[%emt 00:00:23]} 19.
Qg7+ {[%clk 00:05:10]} {[%emt 00:00:17]} 1-0

[ePGN "0.1;DGT LiveChess/2.2.6"]